bitfinex/quotes_ETHUSD_20250406
["timestamp","ask_amount","ask_price","bid_price","bid_amount"]
[1743977649710,2.0939,1602.1,1601.4,6.24448]
[1743977649909,5.84379519,1601.9,1601.1,0.02]
[1743977650110,0.0989,1601.7,1601.1,0.02]
[1743977650424,6.748,1601.5,1601.1,0.02]
[1743977650632,6.748,1601.2,1601.1,0.02]
[1743977651141,7.298,1601.2,1601.1,0.02]
[1743977651297,13.3969,1601.2,1600.2,6.24918]
[1743977651502,5.84379519,1600.8,1600.2,12.49815]
[1743977651820,5.84379519,1600.5,1600.0,0.020875]
[1743977651998,3.0,1600.4,1600.0,0.020875]
[1743977652202,3.0,1600.1,1599.1,0.02]
[1743977652505,3.0,1599.9,1599.2,6.25312]
[1743977652722,3.0,1599.9,1599.5,6.25163]
[1743977652922,3.0,1599.9,1599.3,6.25236]
[1743977652923,47.988,1599.9,1599.3,6.25236]
[1743977653141,48.81676617,1599.9,1599.4,6.25218]
[1743977653315,48.91566617,1599.9,1599.1,6.33568213]
[1743977653666,54.75946136,1599.9,1599.2,6.25287]
[1743977653958,48.0869,1599.9,1599.2,0.627287]
[1743977654156,12.053,1599.8,1599.7,6.2508]
[1743977654363,12.046,1599.8,1599.7,6.2508]
[1743977654516,12.046,1599.8,1599.7,6.25117]
[1743977655059,12.046,1599.8,1599.5,6.25188]
[1743977655258,12.046,1599.8,1599.6,6.25139]
[1743977655417,12.046,1599.8,1599.7,6.25117]
[1743977655823,14.96232105,1600.4,1600.2,6.24894]
[1743977656121,14.96232105,1600.4,1600.3,6.24882]
[1743977656351,2.95632105,1600.4,1600.3,6.24882]
[1743977656734,2.95632105,1600.4,1600.2,6.24902]
[1743977657160,2.95632105,1600.4,1600.1,6.24958]
[1743977657344,2.95632105,1600.4,1600.0,6.24996]
[1743977657543,2.95632105,1600.4,1599.7,0.8089]
[1743977657749,2.95632105,1600.4,1599.9,6.2502]
[1743977657949,45.1039,1600.3,1599.3,0.7942]
[1743977658150,11.985,1600.2,1599.6,6.25156]
[1743977658347,11.985,1600.2,1600.1,6.2496]
[1743977658549,2.95632105,1600.4,1600.3,6.24882]
[1743977659570,2.95632105,1600.4,1600.2,6.24916]
[1743977659735,2.95632105,1600.4,1600.2,6.24906]
[1743977660060,2.95632105,1600.4,1600.3,6.24882]
[1743977660549,2.95632105,1600.4,1600.0,0.7942]
[1743977660721,2.95632105,1600.4,1600.2,6.24918]
[1743977660919,2.95632105,1600.4,1600.3,6.24882]
[1743977661351,2.95632105,1600.4,1600.3,7.498607]
[1743977661758,2.95632105,1600.4,1599.7,1.7942]
[1743977661963,2.95632105,1600.4,1599.7,8.0451]
[1743977662177,2.95632105,1600.4,1600.3,6.24882]
[1743977662375,6.0,1601.6,1600.4,0.7616]
[1743977662376,11.9949,1601.3,1600.4,0.7616]
[1743977662584,11.9949,1601.3,1600.9,6.24637]
[1743977662760,11.896,1601.3,1601.1,6.24569]
[1743977663078,45.014,1601.5,1601.4,6.24453]
[1743977663477,45.014,1601.5,1601.0,0.7515]
[1743977663675,45.014,1601.5,1600.4,3.0]
[1743977663676,45.014,1601.5,1600.8,6.24667]
[1743977663977,0.9989,1601.4,1600.9,6.24647]
[1743977664272,0.9989,1601.4,1601.0,6.24589]
[1743977664483,0.9989,1601.4,1601.2,6.2453]
[1743977664671,3.9989,1601.4,1600.6,6.24765]
[1743977664872,5.84379519,1600.9,1599.8,0.7767]
[1743977665076,11.856,1600.8,1599.8,0.7767]
[1743977665301,0.0989,1601.0,1599.8,0.7767]
[1743977665448,3.0,1600.8,1599.8,0.7767]
[1743977665648,0.0989,1601.0,1599.9,6.25039]
[1743977665879,3.0989,1601.0,1600.5,6.2479]
[1743977666049,0.0989,1601.0,1600.5,7.497479]
[1743977666362,3.57376819,1601.0,1600.6,6.24765]
[1743977666547,6.74379519,1601.4,1600.5,0.7659]
[1743977666548,0.9989,1601.4,1600.5,0.7659]
[1743977666749,0.9,1601.4,1600.5,7.01377]
[1743977666974,0.9,1601.4,1600.9,6.24626]
[1743977667175,0.9,1601.4,1600.6,0.701377]
[1743977667381,0.9,1601.4,1601.1,6.24547]
[1743977667889,11.865,1601.3,1600.9,6.24628]
[1743977668115,11.865,1601.3,1600.5,0.7659]
[1743977668116,3.0,1601.2,1600.7,6.24693]
[1743977668388,0.0989,1601.1,1600.9,6.24646]
[1743977668892,0.0989,1601.1,1601.0,6.24609]
[1743977669191,56.875,1601.3,1601.0,6.24585]
[1743977669345,56.875,1601.3,1601.1,6.24555]
[1743977669748,3.9989,1601.4,1601.1,6.24555]
[1743977669749,0.9,1601.4,1601.2,6.24531]
[1743977669990,0.0989,1601.7,1601.4,6.24438]
[1743977670157,0.0989,1601.7,1601.4,6.24453]
[1743977670345,56.819,1601.9,1601.6,6.24346]
[1743977670547,45.03,1601.9,1601.8,6.24297]
[1743977670743,0.02,1601.9,1601.3,6.24492]
[1743977671291,0.0989,1601.8,1601.3,6.24469]
[1743977671457,0.0989,1601.8,1601.4,6.24433]
[1743977671791,0.0989,1601.8,1600.9,0.7607]
[1743977672017,0.0989,1601.8,1601.2,6.24524]
[1743977672227,0.0989,1601.8,1600.6,0.7607]
[1743977672228,0.0989,1601.6,1600.6,0.7607]
[1743977672433,3.0,1601.4,1600.8,6.24672]
[1743977672927,3.0,1601.4,1601.1,6.24553]
[1743977673132,11.755,1601.5,1601.0,6.24591]
[1743977673281,11.755,1601.5,1600.8,6.24687]
[1743977673486,11.755,1601.5,1601.0,6.24575]
[1743977673687,11.755,1601.5,1600.9,6.24645]
[1743977673908,3.9,1601.4,1600.9,6.24645]
[1743977674118,3.9,1601.4,1600.8,6.24681]
[1743977674589,0.6489,1601.1,1600.2,6.24899]
[1743977674925,0.0989,1600.8,1599.8,6.25061]
[1743977675229,0.6489,1600.5,1599.7,7.25094]
[1743977675386,11.701,1600.4,1600.0,6.24994]
[1743977675581,11.701,1600.4,1599.8,6.25044]
[1743977675582,11.701,1600.4,1599.9,6.2503]
[1743977675782,11.701,1600.4,1600.1,6.2496]
[1743977676031,11.701,1600.4,1600.1,6.24956]
[1743977676181,11.701,1600.4,1599.8,12.50102]
[1743977676182,3.0,1600.3,1599.8,12.50102]
[1743977676378,3.0,1600.3,1599.7,1.0]
[1743977676599,3.0,1600.3,1599.9,6.25033]
[1743977677010,11.701,1600.4,1599.8,6.25078]
[1743977677211,11.701,1600.4,1600.2,6.24886]
[1743977677523,45.006,1600.7,1600.4,6.24823]
[1743977677726,45.006,1600.7,1600.4,6.24816]
[1743977678150,45.006,1600.7,1600.2,12.49796]
[1743977678324,45.006,1600.7,1599.9,7.04921]
[1743977678493,3.0,1600.6,1600.1,6.24955]
[1743977678699,3.0,1600.6,1600.3,6.24854]
[1743977679110,3.0,1600.6,1600.0,6.24978]
[1743977679328,0.4575013,1601.0,1600.0,6.24978]
[1743977679329,0.0989,1601.1,1600.5,6.24772]
[1743977679545,3.0989,1601.1,1600.6,6.2474]
[1743977679744,3.0989,1601.1,1600.3,6.2488]
[1743977679745,3.55794961,1601.1,1600.3,6.2488]
[1743977679930,3.0989,1600.9,1600.0,6.24987]
[1743977680259,0.0989,1600.6,1599.7,7.251]
[1743977680544,3.0,1600.4,1599.9,6.25038]
[1743977680917,3.0,1600.4,1599.7,1.80499]
[1743977681248,0.0989,1600.9,1599.8,6.16]
[1743977681445,0.0989,1600.9,1599.8,12.41069]
[1743977681609,0.0989,1600.9,1600.2,6.2489]
[1743977682052,0.0989,1600.9,1599.7,1.0]
[1743977682053,0.55,1600.8,1599.7,1.0]
[1743977682358,3.0,1600.6,1599.8,6.25076]
[1743977682500,3.0,1600.4,1599.7,7.25088]
[1743977682706,49.4732,1600.4,1599.9,6.25009]
[1743977683116,48.019,1600.4,1600.0,6.24998]
[1743977683315,48.019,1600.4,1599.9,6.25009]
[1743977683542,48.019,1600.4,1600.0,6.24996]
[1743977683716,48.019,1600.4,1599.9,6.25009]
[1743977683914,48.019,1600.4,1599.7,1.0]
[1743977684250,0.0989,1600.3,1599.7,7.25101]
[1743977684840,0.0989,1600.3,1599.7,13.5019]
[1743977685004,0.0989,1600.3,1599.8,6.25076]
[1743977685203,0.0989,1600.3,1599.7,7.25088]
[1743977685607,0.0989,1600.3,1599.8,6.25045]
[1743977686047,0.0989,1600.3,1600.0,6.24996]
[1743977686205,45.21755297,1601.9,1600.3,6.24882]
[1743977686206,11.378,1600.5,1600.3,6.24882]
[1743977686404,11.378,1600.5,1600.4,6.24843]
[1743977686605,0.0989,1600.9,1600.0,6.25]
[1743977686807,0.0989,1600.9,1600.3,6.24854]
[1743977687056,0.56582314,1600.9,1599.8,2.123158]
[1743977687349,0.0989,1600.9,1600.4,6.24827]
[1743977687561,3.0989,1600.9,1600.4,12.49646]
[1743977687735,3.0989,1600.9,1600.0,6.24996]
[1743977687736,0.0989,1600.9,1600.6,6.24742]
[1743977687907,0.0989,1600.9,1600.0,6.24966]
[1743977688114,0.0989,1600.9,1600.4,6.24826]
[1743977688326,0.0989,1600.9,1600.5,6.24784]
[1743977688533,11.336,1600.8,1600.3,12.49723]
[1743977688814,3.0,1600.7,1600.3,6.24857]
[1743977689048,3.0,1600.7,1600.2,6.24912]
[1743977689222,3.0,1600.7,1600.3,6.24867]
[1743977689423,3.0,1600.7,1600.2,6.24912]
[1743977689751,3.0,1600.7,1600.3,6.24881]
[1743977690152,3.0,1600.7,1600.2,6.24917]
[1743977690340,0.0989,1600.6,1599.8,2.123158]
[1743977690519,0.0989,1600.6,1599.8,7.02361]
[1743977690723,0.0989,1600.6,1600.1,12.49881]
[1743977690922,0.0989,1600.6,1600.3,6.24864]
[1743977691128,0.0989,1600.6,1600.2,6.24918]
[1743977691349,0.0989,1600.6,1600.3,6.24854]
[1743977691810,0.0989,1600.6,1600.3,12.4972]
[1743977692009,0.0989,1600.6,1600.3,6.24854]
[1743977692220,0.0989,1600.6,1600.2,6.24919]
[1743977692423,0.0989,1600.6,1600.2,6.24906]
[1743977692635,0.0989,1600.6,1600.3,6.2488]
[1743977692843,0.0989,1600.6,1600.2,6.24906]
[1743977693347,3.0989,1600.6,1600.2,6.24903]
[1743977693510,3.0989,1600.6,1600.3,6.24867]
[1743977693710,3.0,1600.9,1600.5,6.24804]
[1743977693945,45.1239,1601.0,1600.3,0.624867]
[1743977694145,11.147,1600.8,1600.6,6.24752]
[1743977694441,11.147,1600.8,1600.6,12.49499]
[1743977694649,11.147,1600.8,1600.7,6.24726]
[1743977694812,45.1239,1601.0,1600.6,6.24737]
[1743977695017,3.0,1600.9,1600.3,6.3111453]
[1743977695212,3.0,1600.9,1600.4,6.24839]
[1743977695446,45.1239,1601.0,1600.7,6.24712]
[1743977695665,45.1239,1601.0,1600.7,12.49424]
[1743977695836,45.1239,1601.0,1600.9,6.24648]
[1743977696219,45.1239,1601.0,1600.8,6.24673]
[1743977696455,45.1239,1601.0,1600.8,12.49342]
[1743977696750,45.1239,1601.0,1600.9,6.24648]
[1743977696951,45.1239,1601.0,1600.8,6.24669]
[1743977697156,45.1239,1601.0,1600.1,6.2496]
[1743977697157,48.8719,1601.0,1599.9,6.16]
[1743977697332,48.8719,1601.0,1599.7,1.0]
[1743977697333,3.0,1600.7,1600.1,6.24937]
[1743977697654,3.0,1600.5,1600.2,6.24914]
[1743977698561,3.0,1600.5,1600.2,12.49814]
[1743977698758,3.0,1600.5,1600.3,6.24882]
[1743977698957,3.0,1600.5,1600.3,12.49732]
[1743977699137,11.044,1600.6,1600.4,6.24836]
[1743977699328,11.044,1600.6,1600.4,6.2483]
[1743977699531,11.044,1600.6,1600.5,6.24804]
[1743977700031,11.044,1600.6,1600.3,6.24878]
[1743977700361,11.044,1600.6,1600.1,6.2496]
[1743977700362,3.0,1600.5,1600.1,6.24948]
[1743977700857,3.0,1600.5,1600.2,6.24908]
[1743977701061,3.0,1600.5,1600.1,6.24948]
[1743977701277,3.0989,1600.5,1600.1,12.49896]
[1743977701443,3.0989,1600.5,1600.0,6.24992]
[1743977701756,3.0989,1600.5,1599.9,6.25001]
[1743977701932,8.63599,1600.5,1599.8,6.25057]
[1743977702139,8.63599,1600.5,1599.7,7.25109]
[1743977702140,6.748,1600.2,1599.7,1.0]
[1743977702359,3.0,1600.0,1599.7,1.0]
[1743977703547,0.9,1599.9,1599.7,1.0]
[1743977703932,0.9,1599.9,1599.8,6.25078]
[1743977704132,0.9,1599.9,1599.8,7.600958]
[1743977704953,0.47485989,1600.6,1599.8,13.760958]
[1743977705158,0.47485989,1600.6,1600.5,6.24804]
[1743977705473,45.026,1601.3,1601.1,6.24549]
[1743977705642,10.8959,1601.7,1601.4,6.24423]
[1743977706059,10.8959,1601.7,1601.2,6.24526]
[1743977706241,11.98549,1601.7,1600.7,6.16]
[1743977706553,11.98549,1601.7,1600.4,6.9598]
[1743977706554,0.0989,1601.5,1600.4,6.9598]
[1743977706867,0.0989,1601.5,1600.6,6.24729]
[1743977707063,0.0989,1601.5,1600.9,6.24627]
[1743977707268,10.796,1601.4,1600.9,6.24624]
[1743977707470,3.0,1601.3,1600.9,6.24644]
[1743977707671,3.0,1601.3,1600.8,6.24672]
[1743977707833,10.796,1601.4,1601.2,6.24514]
[1743977708179,10.791,1601.4,1600.8,6.24684]
[1743977708462,10.791,1601.4,1601.0,6.24576]
[1743977708463,3.0,1601.3,1601.0,6.24576]
[1743977708666,10.791,1601.4,1601.1,6.24544]
[1743977708963,10.791,1601.4,1601.0,6.24586]
[1743977709261,10.791,1601.4,1601.2,6.24493]
[1743977709477,5.86379519,1601.9,1601.2,0.63073832]
[1743977709478,0.0989,1601.8,1601.2,0.63073832]
[1743977709799,0.02,1601.9,1601.7,6.2432]
[1743977709952,0.02,1601.9,1601.7,6.24313]
[1743977710147,0.02,1601.9,1601.8,6.24297]
[1743977710448,0.02,1601.9,1601.8,7.49158]
[1743977711164,0.02,1601.9,1601.8,7.55399571]
[1743977711483,0.02,1601.9,1601.8,7.49158]
[1743977713085,45.019,1602.6,1602.5,6.24024]
[1743977713384,45.019,1602.6,1602.3,6.24081]
[1743977713559,10.702,1602.7,1601.9,6.16]
[1743977713897,10.702,1602.7,1601.4,9.72193568]
[1743977713898,0.0989,1602.5,1602.0,6.24191]
[1743977714181,0.0989,1602.5,1602.1,6.2416]
[1743977714353,0.0989,1602.5,1602.0,6.24191]
[1743977714548,0.45540409,1602.5,1602.0,6.24191]
[1743977714780,0.0989,1602.5,1601.8,7.04392]
[1743977714968,0.0989,1602.5,1602.0,6.24207]
[1743977715658,0.0989,1602.5,1601.9,6.24257]
[1743977715955,0.0989,1602.5,1602.0,6.24203]
[1743977716160,0.0989,1602.5,1602.0,6.24201]
[1743977716374,0.0989,1602.5,1602.1,6.24167]
[1743977716675,0.0989,1602.5,1602.3,6.24093]
[1743977716864,0.0989,1602.5,1602.2,6.2411]
[1743977717063,3.0989,1602.5,1602.2,6.2411]
[1743977717384,10.569,1602.6,1602.3,6.24087]
[1743977717582,11.6259,1602.6,1602.0,6.2419]
[1743977717749,11.6259,1602.6,1601.9,6.24258]
[1743977717951,11.6259,1602.6,1602.0,6.30436288]
[1743977718248,11.6259,1602.6,1602.2,6.24139]
[1743977718477,3.0,1602.5,1602.1,6.24148]
[1743977718845,3.0,1602.6,1602.4,6.2403]
[1743977719081,3.0,1602.6,1602.5,6.24024]
[1743977719383,44.987,1602.7,1602.5,12.48027]
[1743977719579,44.987,1602.7,1602.6,6.23986]
[1743977719791,44.987,1602.7,1602.5,6.24003]
[1743977720361,44.987,1602.7,1602.6,6.23986]
[1743977721485,10.502,1602.8,1602.7,6.23947]
[1743977721853,10.502,1602.8,1602.6,6.23986]
[1743977722088,10.502,1602.8,1601.8,6.24262]
[1743977722089,3.0989,1602.7,1601.8,6.24262]
[1743977722293,8.94269519,1602.7,1602.1,6.24149]
[1743977722454,9.40056813,1602.7,1602.1,6.24153]
[1743977722655,9.40056813,1602.7,1602.0,6.24219]
[1743977722987,3.0989,1602.7,1602.5,6.24009]
[1743977723487,10.444,1602.9,1602.8,6.23908]
[1743977723692,0.02,1602.9,1602.8,6.23908]
[1743977723894,0.02,1602.9,1602.8,6.30145865]
[1743977724056,10.43,1603.5,1603.4,6.23641]
[1743977724253,10.5169,1603.6,1603.4,6.23641]
[1743977724459,3.0,1603.5,1603.1,6.2376]
[1743977724688,10.5169,1603.6,1602.8,12.39903]
[1743977724875,10.402,1603.5,1603.0,6.23816]
[1743977725184,3.0,1603.4,1602.9,6.23837]
[1743977725397,3.0,1603.4,1603.2,6.2373]
[1743977725715,10.402,1603.5,1603.3,6.23713]
[1743977725862,10.402,1603.5,1603.3,6.2371]
[1743977726198,10.402,1603.5,1603.1,12.47544]
[1743977726491,10.402,1603.5,1602.8,12.3989]
[1743977726492,10.402,1603.5,1603.3,6.23675]
[1743977727196,10.402,1603.5,1603.2,6.23738]
[1743977727565,13.402,1603.5,1602.8,6.16]
[1743977727766,13.402,1603.5,1602.9,0.616]
[1743977727966,13.402,1603.5,1603.0,6.2383]
[1743977728191,13.402,1603.5,1603.3,6.237]
[1743977728366,13.402,1603.5,1603.4,6.23674]
[1743977729095,13.402,1603.5,1603.3,6.237]
[1743977729272,13.402,1603.5,1603.3,12.47394]
[1743977729460,10.402,1603.5,1603.4,6.23674]
[1743977729662,0.0989,1603.6,1603.4,12.47329]
[1743977729879,13.22697585,1603.7,1603.6,6.23596]
[1743977730091,48.0989,1603.9,1603.7,6.23523]
[1743977730092,0.02,1603.9,1603.7,6.23523]
[1743977730481,0.02,1603.9,1603.5,6.23629]
[1743977730682,0.02,1603.9,1603.4,6.23668]
[1743977730862,0.02,1603.9,1603.7,6.23544]
[1743977731062,0.02,1603.9,1603.8,6.23519]
[1743977731482,0.02,1603.9,1603.4,7.484083]
[1743977731483,0.3323239,1603.9,1603.5,6.23601]
[1743977731768,0.3323239,1603.9,1603.6,12.47173]
[1743977731977,0.3323239,1603.9,1603.7,6.23554]
[1743977732183,0.3323239,1603.9,1603.7,12.47098]
[1743977732512,0.3323239,1603.9,1603.8,6.23519]
[1743977733483,0.3323239,1603.9,1603.7,12.47087]
[1743977733680,0.3323239,1603.9,1603.8,6.23519]
[1743977734082,0.3323239,1603.9,1603.8,6.29753765]
[1743977734396,0.3323239,1603.9,1603.8,6.23519]
[1743977735213,0.3323239,1603.9,1603.7,6.23543]
[1743977735823,0.3323239,1603.9,1603.6,6.23581]
[1743977736018,10.217,1603.8,1603.5,6.23608]
[1743977736179,3.25029506,1603.7,1603.4,6.23673]
[1743977736383,0.25029506,1603.7,1603.6,6.23596]
[1743977736616,0.02,1603.9,1603.8,6.23519]
[1743977736786,0.25201485,1603.9,1603.5,6.23617]
[1743977736997,0.25201485,1603.9,1603.5,12.47226]
[1743977737197,0.25201485,1603.9,1603.6,6.23595]
[1743977737520,0.25201485,1603.9,1603.3,6.23708]
[1743977737521,6.58710634,1603.9,1603.3,6.23708]
[1743977737828,0.58710634,1603.9,1603.6,6.23592]
[1743977738413,0.25201485,1603.9,1603.0,7.02918]
[1743977738618,0.25201485,1603.9,1603.6,12.47152]
[1743977738815,0.25201485,1603.9,1603.6,6.23571]
[1743977739020,0.25201485,1603.9,1603.6,6.2357]
[1743977739719,0.25201485,1603.9,1603.3,6.2371]
[1743977739720,0.25201485,1603.9,1603.3,6.23692]
[1743977740020,0.25201485,1603.9,1603.1,6.23782]
[1743977740021,1.23275021,1603.9,1603.2,6.2375]
[1743977740217,1.23275021,1603.9,1603.5,6.23617]
[1743977740397,1.23275021,1603.9,1603.4,6.23674]
[1743977740598,46.17375021,1603.9,1603.2,6.2375]
[1743977740798,46.17375021,1603.9,1603.5,6.23603]
[1743977741637,4.46221033,1603.8,1603.3,6.23697]
[1743977741787,4.46221033,1603.8,1603.4,6.23674]
[1743977741994,0.23108813,1603.7,1603.4,6.23674]
[1743977742210,10.084,1603.6,1603.4,6.23674]
[1743977742698,0.23108813,1603.5,1603.4,6.23674]
[1743977742927,3.23108813,1603.5,1603.1,12.4756]
[1743977743122,3.23108813,1603.5,1603.0,6.23811]
[1743977743123,4.31072349,1603.5,1603.0,6.23811]
[1743977743319,4.31072349,1603.5,1603.0,6.23804]
[1743977743626,0.43107235,1603.4,1603.0,6.23804]
[1743977743834,4.31072349,1603.5,1603.0,6.23804]
[1743977743835,4.07963536,1603.5,1603.0,6.23804]
[1743977744138,0.23108813,1603.4,1603.0,6.23804]
[1743977744318,0.23108813,1603.4,1603.2,6.23745]
[1743977744521,0.23108813,1603.4,1603.2,12.47463]
[1743977744836,0.23108813,1603.4,1603.2,6.23731]
[1743977745033,0.23108813,1603.4,1603.1,6.23788]
[1743977745192,0.23108813,1603.4,1603.1,6.23773]
[1743977745395,0.56408694,1603.4,1603.1,6.23773]
[1743977745835,3.0,1603.2,1602.8,6.23871]
[1743977746030,9.955,1603.1,1602.8,6.23871]
[1743977746246,9.955,1603.1,1602.5,7.05022096]
[1743977746247,0.2091561,1603.1,1602.5,0.80998096]
[1743977746538,0.2091561,1603.1,1603.0,6.2383]
[1743977746735,6.0,1603.5,1603.4,6.23674]
[1743977747038,12.974,1603.8,1603.7,6.23558]
[1743977747039,9.974,1603.8,1603.7,6.23558]
[1743977747532,9.974,1603.8,1603.5,12.47239]
[1743977747745,9.974,1603.8,1603.5,6.236]
[1743977747906,44.961,1603.9,1603.8,6.23519]
[1743977748496,44.961,1603.9,1603.7,6.23537]
[1743977748711,44.961,1603.9,1603.8,6.23519]
[1743977748905,44.961,1603.9,1603.7,6.23537]
[1743977749135,44.961,1603.9,1603.7,6.23557]
[1743977749341,44.961,1603.9,1603.8,6.23519]
[1743977750026,44.961,1603.9,1603.7,6.23537]
[1743977750207,0.0989,1603.7,1602.9,7.00955]
[1743977750548,3.0,1603.5,1603.0,6.23812]
[1743977750831,3.0,1603.3,1603.2,6.23752]
[1743977751134,3.0,1603.3,1603.1,6.23782]
[1743977751309,0.0989,1603.2,1602.9,6.23852]
[1743977751894,0.0989,1603.2,1602.8,6.23907]
[1743977752130,0.0989,1603.2,1602.7,6.23942]
[1743977752348,47.939,1603.1,1602.3,0.815]
[1743977752646,0.0989,1603.0,1602.6,6.23982]
[1743977752795,0.0989,1603.0,1602.7,6.23944]
[1743977753139,9.924,1602.9,1602.7,6.23927]
[1743977753306,3.0,1602.8,1602.7,6.23927]
[1743977753702,3.0,1602.8,1602.6,6.23974]
[1743977753703,3.0,1602.8,1602.6,12.47939]
[1743977753894,3.0,1602.8,1602.4,6.24027]
[1743977754333,3.0,1602.8,1602.0,0.8231]
[1743977754533,3.0,1602.8,1602.6,6.23958]
[1743977754913,6.0,1602.9,1602.8,6.23908]
[1743977755337,3.0,1602.8,1602.6,6.23975]
[1743977755533,3.0,1602.8,1602.7,6.23947]
[1743977755839,3.0,1602.8,1602.6,6.23969]
[1743977756026,3.0,1602.8,1602.6,12.47936]
[1743977756222,3.0,1602.8,1602.7,6.23947]
[1743977757004,6.0,1602.9,1602.8,6.23908]
[1743977757203,15.839,1602.9,1602.8,6.23908]
[1743977757949,9.839,1602.9,1602.8,6.23908]
[1743977758278,9.839,1602.9,1602.6,6.23983]
[1743977758444,3.0,1602.8,1602.5,6.2402]
[1743977758599,3.0,1602.8,1602.3,6.24086]
[1743977758795,3.0,1602.8,1602.3,6.24084]
[1743977759034,3.0,1602.6,1602.0,6.24206]
[1743977759208,3.0,1602.6,1601.6,6.9487]
[1743977759209,9.0,1602.6,1601.7,6.24336]
[1743977759410,10.28469,1602.6,1602.2,6.24128]
[1743977759628,9.0,1602.6,1601.9,6.24258]
[1743977759834,9.761,1602.7,1602.6,6.23986]
[1743977760012,9.761,1602.7,1602.1,7.0302]
[1743977760203,9.761,1602.7,1602.4,6.24049]
[1743977760399,0.0989,1602.5,1602.0,6.24206]
[1743977760714,0.0989,1602.5,1601.9,6.24255]
[1743977760715,0.16624429,1602.4,1601.9,6.24244]
[1743977760921,55.256,1602.3,1601.6,6.24344]
[1743977761102,55.256,1602.3,1601.4,6.24426]
[1743977761103,0.0989,1602.1,1601.4,6.24426]
[1743977761299,3.55,1602.0,1601.4,6.24426]
[1743977761528,3.71411998,1602.0,1601.3,6.24465]
[1743977761716,0.0989,1601.9,1601.3,6.24465]
[1743977761923,3.0,1601.8,1601.3,6.24465]
[1743977762100,3.0,1601.6,1601.3,6.24465]
[1743977762504,3.0,1601.6,1601.2,6.24527]
[1743977762715,0.15660522,1601.5,1601.4,6.24453]
[1743977764108,0.15660522,1601.5,1601.3,6.24477]
[1743977764429,3.0989,1601.4,1601.1,0.02]
[1743977764631,0.15551616,1601.3,1601.1,0.02]
[1743977764926,9.695,1601.2,1601.1,0.02]
[1743977765131,19.245,1601.2,1601.1,0.02]
[1743977765306,21.08988317,1601.2,1601.1,0.02]
[1743977765641,21.24539933,1601.2,1601.1,0.02]
[1743977766048,9.72065505,1601.2,1601.1,0.02]
[1743977766232,19.96865505,1601.2,1601.1,0.02]
[1743977766405,0.55,1601.0,1600.4,6.24818]
[1743977766607,0.0989,1600.7,1600.2,6.24906]
[1743977766848,3.0,1600.5,1600.1,6.26939]
[1743977767055,3.0,1600.5,1600.3,6.24856]
[1743977767208,0.15551616,1600.4,1600.3,6.24856]
[1743977768049,15.696,1600.6,1600.4,6.24833]
[1743977768250,15.696,1600.6,1600.1,6.26941]
[1743977768251,18.13894569,1600.6,1600.1,6.26941]
[1743977768453,3.0,1600.5,1600.1,0.02]
[1743977768613,3.0,1600.5,1600.3,6.24867]
[1743977768951,45.0819,1600.7,1600.3,6.24867]
[1743977768952,44.983,1600.7,1600.3,0.624867]
[1743977769114,44.983,1600.7,1600.6,6.24765]
[1743977769649,9.698,1600.8,1600.7,6.24726]
[1743977769823,9.698,1600.8,1600.7,7.06146]
[1743977770146,9.698,1600.8,1600.7,6.24726]
[1743977770510,3.0,1600.7,1600.6,6.24765]
[1743977771112,3.0,1600.7,1600.4,6.24837]
[1743977771351,10.7390862,1600.7,1600.1,0.02]
[1743977771555,0.55,1600.6,1600.1,0.02]
[1743977771851,0.0989,1600.4,1600.1,6.2694]
[1743977772020,9.652,1600.3,1600.1,0.02]
[1743977772555,9.652,1600.3,1600.2,6.24921]
[1743977772850,54.631,1600.5,1600.4,6.24843]
[1743977773661,54.631,1600.5,1600.3,12.49736]
[1743977773962,54.631,1600.5,1600.3,6.24866]
[1743977774472,54.631,1600.5,1600.3,6.24862]
[1743977774622,54.631,1600.5,1600.4,6.24843]
[1743977775127,9.576,1600.7,1600.6,6.24745]
[1743977775323,9.576,1600.7,1600.6,12.49491]
[1743977775527,9.70624754,1600.7,1600.6,12.49491]
[1743977775836,9.576,1600.7,1600.6,12.49491]
[1743977776559,45.011,1601.1,1600.9,6.24631]
[1743977776861,45.011,1601.1,1601.0,6.24609]
[1743977777167,13.41098535,1601.3,1601.2,6.24531]
[1743977777367,9.534,1601.3,1601.2,6.24531]
[1743977777769,3.87698535,1602.0,1601.3,0.7858]
[1743977777934,3.87698535,1602.0,1601.8,6.24267]
[1743977778124,3.87698535,1602.0,1601.4,6.24453]
[1743977778125,3.87698535,1602.0,1601.7,6.24316]
[1743977778323,9.554,1601.9,1601.7,6.24316]
[1743977778662,3.0,1601.8,1601.6,6.24353]
[1743977778829,9.554,1601.9,1601.7,6.24336]
[1743977779026,0.0989,1601.8,1601.3,6.24481]
[1743977779236,3.0989,1601.8,1601.3,6.24477]
[1743977779663,3.0989,1601.8,1601.3,6.24476]
[1743977779961,3.0989,1601.8,1601.4,6.24453]
[1743977780165,3.0989,1601.8,1601.1,6.24566]